bitfinex/quotes_BTCUSD_20250902
["timestamp","ask_amount","ask_price","bid_price","bid_amount"]
[1756775444179,0.36668357,109410.0,109400.0,0.33773535]
[1756775444385,0.36668357,109410.0,109400.0,0.34184535]
[1756775444595,0.36668357,109410.0,109400.0,0.34384535]
[1756775444835,0.36668357,109410.0,109400.0,0.16314]
[1756775445045,0.36668357,109410.0,109400.0,0.34824054]
[1756775445278,0.36668357,109410.0,109400.0,0.34595535]
[1756775445728,0.02668357,109410.0,109400.0,0.34595535]
[1756775447195,0.02668357,109410.0,109400.0,0.34073535]
[1756775447865,0.02668357,109410.0,109400.0,0.34384535]
[1756775448108,0.02668357,109410.0,109400.0,0.34065535]
[1756775448579,0.02668357,109410.0,109400.0,0.34376535]
[1756775448794,0.02668357,109410.0,109400.0,0.34587535]
[1756775457004,0.18278285,109420.0,109400.0,0.34587535]
[1756775457220,0.18278194,109420.0,109410.0,0.00228498]
[1756775458709,0.19204627,109430.0,109410.0,0.18819281]
[1756775458924,0.53204627,109430.0,109420.0,0.1548]
[1756775459365,0.55962386,109430.0,109420.0,0.1548]
[1756775460682,0.56062386,109430.0,109420.0,0.1548]
[1756775460891,0.5654033,109430.0,109420.0,0.1548]
[1756775461103,0.38154235,109430.0,109420.0,0.1548]
[1756775461290,0.56533351,109430.0,109420.0,0.1548]
[1756775462730,0.56433351,109430.0,109420.0,0.1548]
[1756775463363,0.56433351,109430.0,109420.0,0.1558]
[1756775471052,0.56433351,109430.0,109420.0,0.001]
[1756775471278,0.5840849,109430.0,109420.0,0.001]
[1756775474357,0.5840849,109430.0,109420.0,0.00407]
[1756775474578,0.5840849,109430.0,109420.0,0.001]
[1756775476425,0.23489958,109430.0,109420.0,0.001]
[1756775476860,0.24403784,109430.0,109420.0,0.001]
[1756775478338,0.58403784,109430.0,109420.0,0.001]
[1756775480085,0.58403784,109430.0,109420.0,0.00407]
[1756775480550,0.58403784,109430.0,109420.0,0.001]
[1756775480754,0.58403784,109430.0,109420.0,0.00407]
[1756775481159,0.58403784,109430.0,109420.0,0.001]
[1756775481601,0.58403784,109430.0,109420.0,0.00407]
[1756775481998,0.58403784,109430.0,109420.0,0.00623]
[1756775483108,0.57489958,109430.0,109420.0,0.00623]
[1756775483344,0.03235703,109430.0,109420.0,0.18901194]
[1756775483578,0.03235703,109430.0,109420.0,0.00623]
[1756775484007,0.02757759,109430.0,109420.0,0.00623]
[1756775484222,0.02757759,109430.0,109420.0,0.18901194]
[1756775484439,0.18274865,109440.0,109420.0,0.18901194]
[1756775484645,0.02706284,109430.0,109420.0,0.18594194]
[1756775484826,0.52321929,109440.0,109420.0,0.34070194]
[1756775485267,0.52321929,109440.0,109430.0,0.00307]
[1756775485471,0.52421929,109440.0,109430.0,0.00307]
[1756775485680,0.52421929,109440.0,109430.0,0.00523]
[1756775485916,0.52521929,109440.0,109430.0,0.00523]
[1756775486342,0.52421929,109440.0,109430.0,0.00523]
[1756775486507,0.52521929,109440.0,109430.0,0.00523]
[1756775487315,0.52421929,109440.0,109430.0,0.00523]
[1756775487534,0.52521929,109440.0,109430.0,0.00523]
[1756775487714,0.55171213,109440.0,109430.0,0.00523]
[1756775487913,0.55071213,109440.0,109430.0,0.00523]
[1756775488114,0.55071213,109440.0,109430.0,0.00623]
[1756775490450,0.55071213,109440.0,109430.0,0.00307]
[1756775490639,0.55071213,109440.0,109430.0,0.00507]
[1756775491214,0.55071213,109440.0,109430.0,0.00723]
[1756775491631,0.55071213,109440.0,109430.0,0.00823]
[1756775491991,0.55071213,109440.0,109430.0,0.00607]
[1756775492447,0.55071213,109440.0,109430.0,0.003]
[1756775492658,0.55071213,109440.0,109430.0,0.00607]
[1756775493173,0.55071213,109440.0,109430.0,0.00507]
[1756775493378,0.55071213,109440.0,109430.0,0.002]
[1756775493609,0.18276523,109430.0,109420.0,0.15783]
[1756775493819,0.55071213,109440.0,109430.0,0.001]
[1756775494277,0.55071213,109440.0,109430.0,0.00407]
[1756775494683,0.55071213,109440.0,109430.0,0.00307]
[1756775495480,0.55071213,109440.0,109430.0,0.00407]
[1756775495657,0.55071213,109440.0,109430.0,0.00607]
[1756775496980,0.55071213,109440.0,109430.0,0.00808]
[1756775497318,0.55071213,109440.0,109430.0,0.00607]
[1756775498724,0.55071213,109440.0,109430.0,0.003]
[1756775498950,0.55071213,109440.0,109430.0,0.15772]
[1756775499418,0.55549112,109440.0,109430.0,0.15772]
[1756775500453,0.55549112,109440.0,109430.0,0.16091]
[1756775500753,0.55549112,109440.0,109430.0,0.15772]
[1756775501810,0.55549112,109440.0,109430.0,0.15572]
[1756775502113,0.55549112,109440.0,109430.0,0.15472]
[1756775503179,0.55549112,109440.0,109430.0,0.15572]
[1756775503379,0.55549112,109440.0,109430.0,0.15791]
[1756775503898,0.55549112,109440.0,109430.0,0.15891]
[1756775504542,0.55549112,109440.0,109430.0,0.15572]
[1756775505613,0.55549112,109440.0,109430.0,0.16092]
[1756775508461,0.55549112,109440.0,109430.0,0.15891]
[1756775508680,0.55549112,109440.0,109430.0,0.15572]
[1756775508906,0.55549112,109440.0,109430.0,0.15891]
[1756775509773,0.55549112,109440.0,109430.0,0.16092]
[1756775513386,0.55549112,109440.0,109430.0,0.15572]
[1756775513603,0.55549112,109440.0,109430.0,0.15891]
[1756775514016,0.55549112,109440.0,109430.0,0.15572]
[1756775514254,0.55549112,109440.0,109430.0,0.15891]
[1756775515350,0.57047966,109440.0,109430.0,0.15572]
[1756775516210,0.68544778,109440.0,109430.0,0.001]
[1756775516481,0.84016778,109440.0,109430.0,0.001]
[1756775516705,0.87332965,109440.0,109430.0,0.001]
[1756775517136,0.90080565,109440.0,109430.0,0.001]
[1756775517548,0.91794473,109440.0,109430.0,0.001]
[1756775518018,0.90080565,109440.0,109430.0,0.001]
[1756775519862,0.90079369,109440.0,109430.0,0.001]
[1756775520735,0.90079342,109440.0,109430.0,0.001]
[1756775521178,0.87774129,109440.0,109430.0,0.001]
[1756775521908,0.86917848,109440.0,109430.0,0.001]
[1756775522354,0.84459165,109440.0,109430.0,0.001]
[1756775529149,0.86764378,109440.0,109430.0,0.001]
[1756775530949,0.52279864,109410.0,109400.0,0.07660631]
[1756775531183,0.52279864,109410.0,109400.0,0.07872631]
[1756775531876,0.52279864,109410.0,109400.0,0.00518]
[1756775532106,0.76939463,109410.0,109400.0,0.00518]
[1756775532329,0.79687763,109410.0,109400.0,0.00518]
[1756775532814,0.79687763,109410.0,109400.0,0.00306]
[1756775533512,0.88879362,109410.0,109400.0,0.00306]
[1756775533742,0.52284878,109380.0,109370.0,0.07028]
[1756775533975,0.52284878,109380.0,109370.0,0.0724]
[1756775534208,0.52284878,109380.0,109370.0,0.07546]
[1756775535099,0.52284878,109380.0,109370.0,0.00522706]
[1756775536138,0.52284878,109380.0,109370.0,0.00822706]
[1756775536610,0.52284878,109380.0,109370.0,0.01222706]
[1756775537818,0.76948477,109380.0,109370.0,0.01222706]
[1756775538011,0.79697477,109380.0,109370.0,0.01222706]
[1756775540201,0.79697477,109380.0,109370.0,0.00922706]
[1756775540427,0.79697477,109380.0,109370.0,0.00522706]
[1756775541808,0.64225477,109380.0,109370.0,0.00522706]
[1756775544713,0.55033878,109380.0,109370.0,0.00522706]
[1756775544931,0.52284878,109380.0,109370.0,0.00522706]
[1756775545775,0.52284878,109380.0,109370.0,0.00622706]
[1756775546201,0.52284878,109380.0,109370.0,0.00722706]
[1756775548496,0.32115887,109380.0,109370.0,0.00722706]
[1756775548657,0.50400765,109380.0,109370.0,0.00722706]
[1756775549091,0.50400765,109380.0,109370.0,0.00951287]
[1756775549912,0.50400765,109380.0,109370.0,0.16423287]
[1756775550518,0.18284878,109380.0,109370.0,0.16423287]
[1756775550663,0.34,109380.0,109370.0,0.34709837]
[1756775550866,0.00477848,109390.0,109370.0,0.43672855]
[1756775551069,0.18761156,109390.0,109380.0,0.00306]
[1756775551290,0.18761156,109390.0,109380.0,0.00518]
[1756775551495,0.18761054,109390.0,109380.0,0.00518]
[1756775551731,0.52283206,109390.0,109380.0,0.00518]
[1756775551985,0.52283206,109390.0,109380.0,0.0074656]
[1756775552392,0.19197123,109400.0,109380.0,0.19031321]
[1756775552621,0.53197123,109400.0,109390.0,0.15778]
[1756775552789,0.53197123,109400.0,109390.0,0.1599]
[1756775557680,0.53197123,109400.0,109390.0,0.1621854]
[1756775558657,0.53197123,109400.0,109390.0,0.1599]
[1756775558863,0.53197123,109400.0,109390.0,0.1609]
[1756775559223,0.53197123,109400.0,109390.0,0.1619]
[1756775560516,0.53197123,109400.0,109390.0,0.1641854]
[1756775561669,0.53197123,109400.0,109390.0,0.1619]
[1756775563656,0.53197123,109400.0,109390.0,0.1641854]
[1756775563847,0.53197123,109400.0,109390.0,0.1619]
[1756775567326,0.53197123,109400.0,109390.0,0.1641854]
[1756775569612,0.53197123,109400.0,109390.0,0.1619]
[1756775570652,0.33910933,109400.0,109390.0,0.1619]
[1756775570804,0.53109157,109400.0,109390.0,0.1641854]
[1756775572377,0.53109157,109400.0,109390.0,0.15672]
[1756775573314,0.53109157,109400.0,109390.0,0.002]
[1756775573584,0.53109157,109400.0,109390.0,0.15664]
[1756775574053,0.19198224,109400.0,109390.0,0.15664]
[1756775574503,0.19198224,109400.0,109390.0,0.15464]
[1756775575312,0.18283206,109390.0,109380.0,0.00298]
[1756775575549,0.18283206,109390.0,109380.0,0.15762]
[1756775575783,0.18283206,109390.0,109380.0,0.15967]
[1756775576285,0.18283206,109390.0,109380.0,0.00503]
[1756775576522,0.18283206,109390.0,109380.0,0.15967]
[1756775577181,0.18283206,109390.0,109380.0,0.16067]
[1756775578301,0.18283206,109390.0,109380.0,0.16167]
[1756775579665,0.18283206,109390.0,109380.0,0.1639556]
[1756775580235,0.19198224,109400.0,109380.0,0.34680438]
[1756775580446,0.53198224,109400.0,109390.0,0.00298]
[1756775580655,0.53198224,109400.0,109390.0,0.00503]
[1756775580855,0.53198224,109400.0,109390.0,0.00298]
[1756775581054,0.53198224,109400.0,109390.0,0.00503]
[1756775583245,0.53198224,109400.0,109390.0,0.00298]
[1756775583457,0.18283206,109390.0,109380.0,0.1569256]
[1756775583686,0.18283206,109390.0,109380.0,0.1599056]
[1756775583901,0.18283206,109390.0,109380.0,0.1619556]
[1756775584529,0.18283206,109390.0,109380.0,0.1649556]
[1756775585186,0.18283206,109390.0,109380.0,0.34780438]
[1756775585394,0.18283206,109390.0,109380.0,0.34551878]
[1756775585609,0.18283206,109390.0,109380.0,0.16267]
[1756775585816,0.18283206,109390.0,109380.0,0.1649556]
[1756775586285,0.18283206,109390.0,109380.0,0.1669556]
[1756775595283,0.18283206,109390.0,109380.0,0.34980438]
[1756775595503,0.18283206,109390.0,109380.0,0.34751878]
[1756775595705,0.18283206,109390.0,109380.0,0.16467]
[1756775595830,0.18283206,109390.0,109380.0,0.1669556]
[1756775596502,0.18283206,109390.0,109380.0,0.34980438]
[1756775596712,0.18283206,109390.0,109380.0,0.16467]
[1756775596921,0.18283206,109390.0,109380.0,0.1669556]
[1756775598653,0.18283206,109390.0,109380.0,0.1649056]
[1756775598904,0.18283206,109390.0,109380.0,0.1619256]
[1756775599141,0.18283206,109390.0,109380.0,0.1671756]
[1756775601559,0.18283206,109390.0,109380.0,0.16489]
[1756775608050,0.18283206,109390.0,109380.0,0.1671756]
[1756775611019,0.55946324,109400.0,109380.0,0.35002438]
[1756775611229,0.18283206,109390.0,109380.0,0.34460878]
[1756775611926,0.18283206,109390.0,109380.0,0.34573878]
[1756775612358,0.18283206,109390.0,109380.0,0.16289]
[1756775612571,0.18283206,109390.0,109380.0,0.1621756]
[1756775612796,0.18283206,109390.0,109380.0,0.1631756]
[1756775613228,0.18283206,109390.0,109380.0,0.1641756]
[1756775613443,0.18283206,109390.0,109380.0,0.1631756]
[1756775613652,0.18283206,109390.0,109380.0,0.1661756]
[1756775613936,0.18283206,109390.0,109380.0,0.1651756]
[1756775614239,0.18283206,109390.0,109380.0,0.1671756]
[1756775614434,0.18283206,109390.0,109380.0,0.35002438]
[1756775614678,0.18283206,109390.0,109380.0,0.34773878]
[1756775616252,0.18761054,109390.0,109380.0,0.34773878]
[1756775617263,0.18761054,109390.0,109380.0,0.16489]
[1756775617434,0.18761054,109390.0,109380.0,0.1671756]
[1756775618756,0.18761054,109390.0,109380.0,0.35002438]
[1756775618998,0.18761054,109390.0,109380.0,0.34773878]
[1756775619199,0.18761054,109390.0,109380.0,0.16489]
[1756775619410,0.18761054,109390.0,109380.0,0.1671756]
[1756775620903,0.18761054,109390.0,109380.0,0.35002438]
[1756775621142,0.18761054,109390.0,109380.0,0.16489]
[1756775621384,0.18761054,109390.0,109380.0,0.1671756]
[1756775621602,0.18761054,109390.0,109380.0,0.35002438]
[1756775621829,0.18761054,109390.0,109380.0,0.34773878]
[1756775621949,0.18761054,109390.0,109380.0,0.16489]
[1756775622170,0.18761054,109390.0,109380.0,0.1671756]
[1756775623171,0.18761054,109390.0,109380.0,0.35002438]
[1756775623410,0.00477848,109390.0,109380.0,1.03917775]
[1756775623620,0.18279868,109410.0,109390.0,0.18282246]
[1756775623841,0.18279868,109410.0,109400.0,0.16176519]
[1756775624056,0.18279868,109410.0,109400.0,0.15948]
[1756775626631,0.18279868,109410.0,109400.0,0.16176519]
[1756775627077,0.55025894,109420.0,109400.0,0.34458054]
[1756775627301,0.18279864,109410.0,109400.0,0.43124134]
[1756775627946,0.18279864,109410.0,109400.0,0.43421134]
[1756775631037,0.21025894,109420.0,109400.0,0.43421134]
[1756775631240,0.55025894,109420.0,109410.0,0.00297]
[1756775631732,0.55025894,109420.0,109410.0,0.19004362]
[1756775631961,0.55025894,109420.0,109410.0,0.00496]
[1756775632184,0.55025894,109420.0,109410.0,0.00724498]
[1756775632403,0.55125894,109420.0,109410.0,0.00724498]
[1756775632628,0.55125894,109420.0,109410.0,0.00729204]
[1756775633037,0.55225894,109420.0,109410.0,0.00729204]
[1756775633696,0.21225894,109420.0,109410.0,0.00729204]
[1756775633896,0.18378194,109420.0,109410.0,0.00729204]
[1756775634271,0.18478194,109420.0,109410.0,0.00729204]
[1756775636575,0.18478194,109420.0,109410.0,0.00530204]
[1756775638669,0.18478194,109420.0,109410.0,4.706e-05]
[1756775638861,0.18478194,109420.0,109410.0,0.00233204]
[1756775641060,0.18956042,109420.0,109410.0,0.00233204]
[1756775643941,0.18956042,109420.0,109410.0,0.00530204]
[1756775647509,0.18956042,109420.0,109410.0,0.00233204]
[1756775647731,0.18956042,109420.0,109410.0,0.00756204]
[1756775648602,0.18956042,109420.0,109410.0,0.07784204]
[1756775649979,0.00677848,109420.0,109410.0,0.26064068]
[1756775650190,0.18956042,109420.0,109410.0,0.35027169]
[1756775651043,0.00577848,109420.0,109410.0,0.35027169]
[1756775651256,0.18756042,109420.0,109410.0,0.35227169]
[1756775651487,0.18756042,109420.0,109410.0,0.35327169]
[1756775651746,0.18756042,109420.0,109410.0,0.75327169]
[1756775651970,0.18756042,109420.0,109410.0,0.75227169]
[1756775652184,0.18756042,109420.0,109410.0,0.75527169]
[1756775654828,0.18756042,109420.0,109410.0,0.35527169]
[1756775655248,0.18756042,109420.0,109410.0,0.75527169]
[1756775657041,0.18756042,109420.0,109410.0,0.57247305]
[1756775658120,0.18756042,109420.0,109410.0,0.17247305]
[1756775658783,0.18756042,109420.0,109410.0,0.57247305]
[1756775661641,0.18756042,109420.0,109410.0,0.17247305]
[1756775662184,0.18756042,109420.0,109410.0,0.57247305]
[1756775665265,0.18756042,109420.0,109410.0,0.17247305]
[1756775665475,0.18278194,109420.0,109410.0,0.17247305]
[1756775665687,0.18278194,109420.0,109410.0,0.57247305]
[1756775666123,0.55937749,109430.0,109410.0,0.75527169]
[1756775666344,0.18278194,109420.0,109410.0,0.75212169]
[1756775666557,0.18278194,109420.0,109410.0,0.72368305]
[1756775666956,0.18278194,109420.0,109410.0,0.72683305]
[1756775667090,0.18278194,109420.0,109410.0,0.72483305]
[1756775667764,0.18278194,109420.0,109410.0,0.72583305]
[1756775668821,0.18278194,109420.0,109410.0,0.32583305]
[1756775669268,0.18278194,109420.0,109410.0,0.72483305]
[1756775669565,0.18278194,109420.0,109410.0,0.72683305]
[1756775669933,0.18278194,109420.0,109410.0,0.48055706]
[1756775670161,0.18278194,109420.0,109410.0,0.22968706]
[1756775670609,0.18278194,109420.0,109410.0,0.00504706]
[1756775670829,0.52278194,109420.0,109410.0,0.15940706]
[1756775671046,0.55025894,109420.0,109410.0,0.15940706]
[1756775671271,0.64217493,109420.0,109410.0,0.15940706]
[1756775671491,0.66193598,109420.0,109410.0,0.00504706]
[1756775671923,0.66193598,109420.0,109410.0,0.00204706]
[1756775672136,0.66193598,109420.0,109410.0,0.00304706]
[1756775672361,0.66193598,109420.0,109410.0,0.00104706]
[1756775672590,0.66193598,109420.0,109410.0,4.706e-05]
[1756775672784,0.66193598,109420.0,109410.0,0.00104706]
[1756775672917,0.70270384,109420.0,109410.0,0.00104706]
[1756775673136,0.70270384,109420.0,109410.0,4.706e-05]
[1756775678038,0.66193598,109420.0,109410.0,4.706e-05]
[1756775681055,0.66671446,109420.0,109410.0,4.706e-05]
[1756775682771,0.70782802,109420.0,109410.0,4.706e-05]
[1756775688308,0.70882802,109420.0,109410.0,4.706e-05]
[1756775688515,0.70982802,109420.0,109410.0,4.706e-05]
[1756775688704,0.70882802,109420.0,109410.0,4.706e-05]
[1756775689067,0.70982802,109420.0,109410.0,4.706e-05]
[1756775692125,0.51175272,109420.0,109410.0,4.706e-05]
[1756775692336,0.69453466,109420.0,109410.0,4.706e-05]
[1756775695266,0.71758679,109420.0,109410.0,1e-08]
[1756775696598,0.87190679,109420.0,109410.0,1e-08]
[1756775697439,0.55576353,109420.0,109410.0,1e-08]
[1756775697655,0.56218633,109420.0,109410.0,1e-08]
[1756775698068,0.57931389,109420.0,109410.0,1e-08]
[1756775698274,0.60395521,109420.0,109410.0,1e-08]
[1756775698482,0.6958712,109420.0,109410.0,1e-08]
[1756775698864,0.60395521,109420.0,109410.0,1e-08]
[1756775699352,0.94395521,109420.0,109410.0,1e-08]
[1756775702259,0.952262,109420.0,109410.0,1e-08]
[1756775702485,0.97693938,109420.0,109410.0,1e-08]
[1756775703202,0.952262,109420.0,109410.0,1e-08]
[1756775703439,1.04419053,109420.0,109410.0,1e-08]
[1756775705980,0.95227454,109420.0,109410.0,1e-08]
[1756775706897,0.95227213,109420.0,109410.0,1e-08]
[1756775707283,1.0016943,109420.0,109410.0,1e-08]
[1756775708431,0.52283206,109390.0,109380.0,0.07354631]
[1756775708611,0.67715206,109390.0,109380.0,0.07566337]
[1756775709161,0.70941554,109390.0,109380.0,0.07566337]
[1756775709573,0.70941554,109390.0,109380.0,0.00411706]
[1756775710005,0.70941554,109390.0,109380.0,0.00711706]
[1756775710260,0.70941554,109390.0,109380.0,0.01028706]
[1756775710468,0.55509554,109390.0,109380.0,0.01028706]
[1756775711238,0.55509554,109390.0,109380.0,0.00828706]
[1756775711442,0.55509554,109390.0,109380.0,0.00528706]
[1756775712095,0.55509554,109390.0,109380.0,0.00628706]
[1756775712501,0.55509554,109390.0,109380.0,0.00728706]
[1756775713077,0.55509554,109390.0,109380.0,0.00628706]
[1756775713231,0.55509554,109390.0,109380.0,0.00728706]
[1756775714921,0.70941554,109390.0,109380.0,0.00728706]
[1756775720298,0.71142554,109390.0,109380.0,0.00728706]
[1756775720597,0.70941554,109390.0,109380.0,0.00728706]
[1756775721178,0.84456928,109390.0,109380.0,0.00204706]
[1756775721425,0.89033085,109390.0,109380.0,0.00204706]
[1756775722124,0.91499087,109390.0,109380.0,0.00204706]
[1756775722343,0.93212722,109390.0,109380.0,0.00104706]
[1756775722562,0.91599087,109390.0,109380.0,0.00104706]
[1756775722792,0.91599087,109390.0,109380.0,4.706e-05]
[1756775723006,0.93212987,109390.0,109380.0,4.706e-05]
[1756775723216,0.93312987,109390.0,109380.0,4.706e-05]
[1756775723432,0.97633222,109390.0,109380.0,4.706e-05]
[1756775723872,0.93412987,109390.0,109380.0,4.706e-05]
[1756775724323,0.94269994,109390.0,109380.0,4.706e-05]
[1756775724560,0.93413,109390.0,109380.0,4.706e-05]
[1756775725952,0.93116,109390.0,109380.0,4.706e-05]
[1756775727094,0.93413,109390.0,109380.0,4.706e-05]
[1756775727322,0.1828655,109370.0,109360.0,0.00317]
[1756775727533,0.69688494,109370.0,109360.0,0.00331126]
[1756775727755,0.69889494,109370.0,109360.0,0.00331126]
[1756775727996,0.72638494,109370.0,109360.0,0.00331126]
[1756775728230,0.82307941,109370.0,109360.0,0.00014126]
[1756775728468,0.82307941,109370.0,109360.0,0.00538126]
[1756775728685,0.82106941,109370.0,109360.0,0.00538126]
[1756775729124,0.82106941,109370.0,109360.0,0.00638126]
[1756775729555,0.81785783,109370.0,109360.0,0.00638126]
[1756775730375,0.81785783,109370.0,109360.0,0.00738126]
[1756775732591,0.81986783,109370.0,109360.0,0.00738126]
[1756775733426,0.81986783,109370.0,109360.0,0.00638126]
[1756775733638,0.81986783,109370.0,109360.0,0.00538126]
[1756775733854,0.81785783,109370.0,109360.0,0.00538126]
[1756775734934,0.81986783,109370.0,109360.0,0.00538126]
[1756775735146,0.81785783,109370.0,109360.0,0.00538126]
[1756775735618,0.81307935,109370.0,109360.0,0.00538126]
[1756775736353,0.81512935,109370.0,109360.0,0.00538126]
[1756775738025,0.81512935,109370.0,109360.0,0.00014126]
[1756775738257,0.81512935,109370.0,109360.0,0.00229126]
[1756775738394,0.81512935,109370.0,109360.0,0.00014126]
[1756775738814,0.83484816,109370.0,109360.0,0.00014126]
[1756775739413,0.92978415,109370.0,109360.0,0.00014126]
[1756775739619,1.02315628,109370.0,109360.0,1e-08]
[1756775739832,1.11494071,109370.0,109360.0,1e-08]
[1756775740050,1.20904413,109370.0,109360.0,1e-08]
[1756775740261,0.5229324,109330.0,109320.0,0.07394631]
[1756775740471,0.79447052,109330.0,109320.0,0.07408762]
[1756775740903,0.82499352,109330.0,109320.0,0.07408762]
[1756775741112,0.82499352,109330.0,109320.0,0.00054131]
[1756775741308,0.82197352,109330.0,109320.0,0.00054131]
[1756775741513,0.84469085,109330.0,109320.0,0.00054131]
[1756775741712,0.81961872,109330.0,109320.0,0.00054131]
[1756775741935,0.82061872,109330.0,109320.0,0.00054131]
[1756775742540,0.57847028,109330.0,109320.0,0.00054131]
[1756775742798,0.60688268,109330.0,109320.0,0.00054131]
[1756775742994,0.76148268,109330.0,109320.0,0.00054131]
[1756775743218,0.75939268,109330.0,109320.0,0.00582131]
[1756775743422,0.76144268,109330.0,109320.0,0.00054131]
[1756775743625,0.78751481,109330.0,109320.0,0.00054131]
[1756775743831,0.78449481,109330.0,109320.0,0.00054131]
[1756775744039,0.76156268,109330.0,109320.0,0.00582131]
[1756775744844,0.80213756,109330.0,109320.0,0.00269131]
[1756775745053,0.76156268,109330.0,109320.0,0.00269131]
[1756775745281,0.76156268,109330.0,109320.0,0.00054131]
[1756775745703,0.76156268,109330.0,109320.0,0.00269131]
[1756775745920,0.76156268,109330.0,109320.0,0.00054131]
[1756775747505,0.76458268,109330.0,109320.0,0.00054131]
[1756775748389,0.82435756,109330.0,109320.0,1e-08]
[1756775749232,0.83075613,109330.0,109320.0,1e-08]
[1756775749874,0.87266553,109330.0,109320.0,1e-08]
[1756775750310,0.9555189,109330.0,109320.0,1e-08]
[1756775750989,0.87744401,109330.0,109320.0,1e-08]
[1756775752121,0.89266668,109330.0,109320.0,1e-08]
[1756775752382,0.73496668,109330.0,109320.0,0.00528001]
[1756775752588,0.88918051,109330.0,109320.0,0.00528001]
[1756775752808,0.89123051,109330.0,109320.0,1e-08]
[1756775753013,0.9831465,109330.0,109320.0,1e-08]
[1756775753649,0.66795515,109330.0,109320.0,0.00528001]
[1756775753861,0.51571529,109330.0,109320.0,0.00528001]
[1756775754075,0.81899254,109330.0,109320.0,0.00528001]
[1756775754281,0.83604537,109330.0,109320.0,0.00528001]
[1756775754730,0.68040537,109330.0,109320.0,0.00528001]
[1756775754941,0.83404537,109330.0,109320.0,0.00528001]
[1756775755337,0.83404537,109330.0,109320.0,0.00628001]
[1756775755541,0.83404826,109330.0,109320.0,0.00628001]
[1756775756641,0.58749227,109330.0,109320.0,0.00628001]
[1756775756861,0.23043655,109330.0,109320.0,0.00628001]
[1756775757052,0.57043655,109330.0,109320.0,0.00628001]
[1756775757949,0.55521388,109330.0,109320.0,0.19151601]
[1756775758225,0.21521388,109330.0,109320.0,0.18922915]
[1756775758454,0.18771088,109330.0,109320.0,0.18922915]
[1756775758682,0.52771088,109330.0,109320.0,0.18922915]
[1756775758909,0.00477848,109330.0,109320.0,0.64114204]
[1756775759128,0.00477848,109330.0,109320.0,0.35150514]
[1756775759556,0.00477848,109330.0,109320.0,0.50618514]
[1756775759807,0.20238946,109330.0,109320.0,0.323236]
[1756775760049,0.20238946,109330.0,109320.0,0.07664001]
[1756775760269,0.20238946,109330.0,109320.0,0.00628001]
[1756775760763,0.18771088,109330.0,109320.0,0.00856687]
[1756775760993,0.18771088,109330.0,109320.0,0.283432]
[1756775761221,0.18771088,109330.0,109320.0,0.098196]
[1756775763802,0.18771088,109330.0,109320.0,0.00628001]
[1756775768122,0.52771088,109330.0,109320.0,0.00628001]
[1756775768676,0.55520788,109330.0,109320.0,0.00628001]
[1756775769652,0.55728788,109330.0,109320.0,0.00100001]
[1756775770074,0.78619039,109330.0,109320.0,0.00100001]
[1756775770293,0.80710387,109330.0,109320.0,0.00100001]
[1756775770510,0.85034564,109330.0,109320.0,0.00100001]
[1756775770722,0.89803373,109330.0,109320.0,1e-08]
[1756775773204,0.93088168,109330.0,109320.0,1e-08]
[1756775774382,0.89803373,109330.0,109320.0,1e-08]
[1756775774612,0.95863954,109330.0,109320.0,1e-08]
[1756775774870,0.89803373,109330.0,109320.0,1e-08]
[1756775775101,0.8749816,109330.0,109320.0,1e-08]
[1756775775377,0.87497659,109330.0,109320.0,1e-08]
[1756775781989,0.87231659,109330.0,109320.0,1e-08]
[1756775782275,0.54600127,109320.0,109310.0,1e-08]
[1756775782511,0.52299935,109290.0,109280.0,0.07299632]
[1756775782737,0.52299935,109290.0,109280.0,0.07346755]
[1756775782738,0.77529534,109290.0,109280.0,0.07346755]
[1756775782955,0.79206854,109290.0,109280.0,0.07559755]
[1756775783191,0.82729802,109290.0,109280.0,0.00087123]
[1756775784870,0.82227802,109290.0,109280.0,0.00623123]
[1756775785115,0.82435802,109290.0,109280.0,0.00723123]
[1756775785356,0.80464482,109290.0,109280.0,0.00723123]
[1756775786052,0.80464482,109290.0,109280.0,0.00400123]
[1756775786218,0.80758482,109290.0,109280.0,0.00400123]
[1756775786494,0.80758482,109290.0,109280.0,0.00187123]
[1756775787470,0.8272635,109290.0,109280.0,0.00187123]
[1756775788145,0.8272635,109290.0,109280.0,0.00087123]
[1756775788574,0.8312635,109290.0,109280.0,0.00087123]
[1756775788788,0.8292635,109290.0,109280.0,0.00087123]
[1756775789244,0.8312635,109290.0,109280.0,0.00087123]
[1756775789522,0.9016235,109290.0,109280.0,0.00087123]
[1756775791171,0.98820155,109290.0,109280.0,0.00087123]
[1756775792198,1.01125368,109290.0,109280.0,1e-08]
[1756775792408,0.92467563,109290.0,109280.0,1e-08]
[1756775793019,0.8986435,109290.0,109280.0,0.00213001]
[1756775793393,0.9015835,109290.0,109280.0,1e-08]
[1756775795548,0.92622299,109290.0,109280.0,1e-08]
[1756775795766,1.01813898,109290.0,109280.0,1e-08]
[1756775796428,0.92622299,109290.0,109280.0,1e-08]
[1756775796678,0.67954955,109290.0,109280.0,1e-08]
[1756775796906,0.8625489,109290.0,109280.0,1e-08]
[1756775797342,0.8860385,109290.0,109280.0,1e-08]
[1756775797556,0.8625489,109290.0,109280.0,1e-08]
[1756775797769,0.8625489,109290.0,109280.0,0.00204001]
[1756775797993,0.8596089,109290.0,109280.0,0.00204001]
[1756775798435,0.88618011,109290.0,109280.0,1e-08]
[1756775799304,0.8626889,109290.0,109280.0,1e-08]
[1756775799519,0.88619062,109290.0,109280.0,1e-08]
[1756775800588,0.88620868,109290.0,109280.0,1e-08]
[1756775802000,0.88621181,109290.0,109280.0,1e-08]
[1756775803170,0.88621181,109290.0,109280.0,0.00204001]
[1756775803889,0.88621181,109290.0,109280.0,1e-08]
[1756775804515,0.88621181,109290.0,109280.0,0.00204001]
[1756775804735,0.88621181,109290.0,109280.0,1e-08]
[1756775804947,0.88621181,109290.0,109280.0,0.00204001]
[1756775805751,0.72573181,109290.0,109280.0,0.00517001]
[1756775805967,0.87451912,109290.0,109280.0,0.00517001]
[1756775806189,0.85742696,109290.0,109280.0,0.00517001]
[1756775806403,0.94934295,109290.0,109280.0,0.00517001]
[1756775806615,0.94734295,109290.0,109280.0,0.00517001]
[1756775807027,0.94634295,109290.0,109280.0,0.00517001]
[1756775807336,0.97096387,109290.0,109280.0,0.00517001]
[1756775807477,0.90258477,109290.0,109280.0,0.00517001]
[1756775810524,0.93543272,109290.0,109280.0,0.00517001]
[1756775810978,0.93756272,109290.0,109280.0,0.00517001]
[1756775812125,0.93757521,109290.0,109280.0,0.00517001]
[1756775812358,0.91295429,109290.0,109280.0,0.00517001]
[1756775813268,0.91082429,109290.0,109280.0,0.00517001]
[1756775813700,0.93553574,109290.0,109280.0,0.00517001]
[1756775813939,0.9355786,109290.0,109280.0,0.00517001]
[1756775814153,0.61810261,109290.0,109280.0,0.00517001]